bitfinex/quotes_ETHUSD_20250706
["timestamp","ask_amount","ask_price","bid_price","bid_amount"]
[1751842783604,1.0039,2584.9,2584.8,3.86977128]
[1751842783801,0.1928,2584.9,2584.8,3.86977128]
[1751842784888,0.1928,2584.9,2584.8,4.64365416]
[1751842785100,0.1928,2584.9,2584.8,4.92815416]
[1751842786220,0.05035028,2585.3,2585.2,3.86817267]
[1751842786221,0.002,2585.3,2585.2,3.86817267]
[1751842786417,0.1948,2585.3,2585.2,3.86817267]
[1751842792729,0.002,2585.3,2585.2,4.92632002]
[1751842793025,0.002,2585.3,2585.2,9.94103139]
[1751842793231,0.002,2585.3,2585.2,24.62462109]
[1751842793801,1e-08,2585.3,2585.2,24.62462109]
[1751842796628,1e-08,2585.3,2585.2,32.51862109]
[1751842800850,0.002,2585.8,2585.7,3.86742468]
[1751842801145,0.002,2585.8,2585.7,17.83413373]
[1751842801746,0.002,2585.9,2585.8,13.86727511]
[1751842801949,1e-08,2585.9,2585.8,14.15177511]
[1751842802814,1e-08,2585.9,2585.8,14.34457511]
[1751842803519,1e-08,2585.9,2585.8,22.23757511]
[1751842803744,1e-08,2585.9,2585.8,26.08646759]
[1751842805541,1e-08,2585.9,2585.8,18.19346759]
[1751842805841,1e-08,2585.9,2585.8,26.08646759]
[1751842806917,1e-08,2585.9,2585.8,30.77005729]
[1751842807351,1e-08,2585.9,2585.8,22.87705729]
[1751842807642,1e-08,2585.9,2585.8,30.76905729]
[1751842808047,1e-08,2585.9,2585.8,30.67925729]
[1751842809051,1e-08,2585.9,2585.8,22.78725729]
[1751842809426,1e-08,2585.9,2585.8,30.67925729]
[1751842812261,1e-08,2585.9,2585.8,30.67825729]
[1751842812839,1e-08,2585.9,2585.8,22.78725729]
[1751842813039,1e-08,2585.9,2585.8,35.40846866]
[1751842813523,1e-08,2585.9,2585.8,27.51746866]
[1751842813723,1e-08,2585.9,2585.8,35.40846866]
[1751842814739,0.80860001,2585.9,2585.4,3.86782164]
[1751842815052,0.1928,2585.7,2585.6,3.86757425]
[1751842816923,0.1928,2585.7,2585.6,11.75757425]
[1751842817756,0.1928,2585.7,2585.6,3.86757425]
[1751842817924,0.1928,2585.7,2585.6,11.75757425]
[1751842819857,0.1928,2585.7,2585.6,3.86757425]
[1751842820065,0.1928,2585.7,2585.6,11.75857425]
[1751842824865,0.1928,2585.7,2585.6,3.86757425]
[1751842825029,0.1928,2585.7,2585.6,11.75857425]
[1751842826385,1e-08,2585.9,2585.8,3.86727511]
[1751842826590,0.19280001,2585.9,2585.8,3.86727511]
[1751842826890,0.19280001,2585.9,2585.8,11.75827511]
[1751842827976,0.19280001,2585.9,2585.7,11.75834975]
[1751842828178,0.1928,2585.7,2585.6,11.75852957]
[1751842828786,0.1928,2585.7,2585.6,3.86752957]
[1751842840183,0.2411428,2585.7,2585.5,3.86758307]
[1751842840390,0.0483428,2585.7,2585.5,3.86758307]
[1751842841388,0.7996,2585.8,2585.5,3.86758307]
[1751842841595,0.0483428,2585.7,2585.5,3.86758307]
[1751842842088,0.4063489,2585.7,2585.5,3.86758307]
[1751842842956,0.4063489,2585.7,2585.6,3.86757425]
[1751842843365,0.4063489,2585.7,2585.5,3.86768193]
[1751842844082,0.8023,2585.6,2585.4,3.86780715]
[1751842844492,0.85064467,2585.6,2585.4,3.86780715]
[1751842845268,1.72460914,2585.6,2585.4,3.86780715]
[1751842845469,1.72460914,2585.6,2585.5,3.86772384]
[1751842845669,0.1928,2585.5,2585.3,3.86800878]
[1751842845902,2.08272254,2585.6,2585.3,3.86789125]
[1751842845903,1.72460914,2585.6,2585.3,3.86789125]
[1751842846100,1.72460914,2585.6,2585.4,3.8678402]
[1751842846301,1.72460914,2585.6,2585.4,0.001]
[1751842846606,0.35812051,2585.5,2585.4,0.001]
[1751842846901,0.35817297,2585.5,2585.4,0.001]
[1751842847287,0.35817297,2585.5,2585.4,3.86887344]
[1751842848105,1.72460914,2585.6,2585.4,3.86887344]
[1751842848306,1.72460914,2585.6,2585.4,0.001]
[1751842849104,1.72460914,2585.6,2585.4,3.86886446]
[1751842850012,0.35808899,2585.5,2585.4,3.86886446]
[1751842850790,0.35808899,2585.5,2585.4,0.001]
[1751842851012,0.35808899,2585.5,2585.4,3.86887344]
[1751842851979,1.72460914,2585.6,2585.5,3.86772384]
[1751842852174,1.2085959,2585.6,2585.5,3.86772384]
[1751842853078,0.1928,2585.5,2585.4,3.86877731]
[1751842853274,0.55075123,2585.5,2585.4,3.86877731]
[1751842857312,0.55073827,2585.5,2585.4,3.86877731]
[1751842857615,0.1928,2585.5,2585.4,3.86877731]
[1751842858116,0.5507724,2585.5,2585.4,3.86877731]
[1751842860401,0.1928,2585.5,2585.4,3.86877731]
[1751842861728,0.55083448,2585.5,2585.4,0.001]
[1751842861913,1.6099524,2585.5,2585.4,0.001]
[1751842862296,1.25191792,2585.5,2585.4,0.001]
[1751842862501,1.60995752,2585.5,2585.4,0.001]
[1751842863024,11.04239273,2585.5,2585.4,0.001]
[1751842865023,6.02768136,2585.5,2585.4,0.001]
[1751842865225,6.0760279,2585.5,2585.4,0.001]
[1751842865526,6.07570246,2585.5,2585.4,0.001]
[1751842867514,2.20797862,2585.5,2585.4,0.001]
[1751842867722,11.17731416,2585.5,2585.4,3.86887344]
[1751842867934,10.37151416,2585.5,2585.4,3.86887344]
[1751842868625,2.48451416,2585.5,2585.4,3.86887344]
[1751842869596,2.48451416,2585.5,2585.4,0.001]
[1751842869826,2.48451416,2585.5,2585.4,3.86887344]
[1751842871732,2.48451416,2585.5,2585.4,0.001]
[1751842872099,2.48437304,2585.5,2585.4,0.001]
[1751842872524,3.28947304,2585.5,2585.4,0.001]
[1751842874230,2.9319,2585.5,2585.4,0.001]
[1751842874418,3.58756276,2585.5,2585.4,0.001]
[1751842874623,3.6359093,2585.5,2585.4,0.001]
[1751842874822,3.27827082,2585.5,2585.4,0.001]
[1751842875133,3.63598106,2585.5,2585.4,0.001]
[1751842876433,2.83088106,2585.5,2585.4,0.001]
[1751842876603,2.48451024,2585.5,2585.4,0.001]
[1751842878330,2.48452255,2585.5,2585.4,0.001]
[1751842878933,6.35224639,2585.5,2585.4,0.001]
[1751842879734,7.16284639,2585.5,2585.4,0.001]
[1751842880234,11.18112255,2585.5,2585.4,0.001]
[1751842881206,11.1811129,2585.5,2585.4,0.001]
[1751842881503,12.68598639,2585.5,2585.4,0.001]
[1751842882329,16.55371023,2585.5,2585.4,0.001]
[1751842884133,16.19599733,2585.5,2585.4,0.001]
[1751842884307,16.55358872,2585.5,2585.4,0.001]
[1751842884910,16.55355794,2585.5,2585.4,0.001]
[1751842885109,16.55356051,2585.5,2585.4,0.001]
[1751842886139,12.68583667,2585.5,2585.4,0.001]
[1751842886443,16.55356051,2585.5,2585.4,0.001]
[1751842889013,32.11827188,2585.5,2585.4,0.001]
[1751842889419,3.86862161,2584.9,2584.8,0.001]
[1751842889645,14.80598479,2584.9,2584.8,0.001]
[1751842889857,15.97781991,2584.9,2584.8,0.001]
[1751842890035,31.54253128,2584.9,2584.8,0.001]
[1751842890235,0.55,2584.7,2584.3,0.04328061]
[1751842890436,3.86937006,2584.4,2584.3,0.04328061]
[1751842890637,14.97897385,2584.4,2584.3,0.04328061]
[1751842890948,14.93060673,2584.4,2584.3,0.04328061]
[1751842891530,24.93060673,2584.4,2584.3,0.04328061]
[1751842892055,0.1928,2584.3,2583.8,3.87016908]
[1751842892254,10.22393404,2584.2,2583.8,3.87016908]
[1751842892438,9.818,2584.2,2583.9,3.87000047]
[1751842893855,0.04837274,2584.1,2583.9,3.87000047]
[1751842894056,7.885,2584.0,2583.9,3.87000047]
[1751842896160,10.7638,2584.4,2583.9,0.2845]
[1751842896338,9.818,2584.3,2584.2,3.86966953]
[1751842896542,7.885,2584.4,2584.3,3.86950241]
[1751842896758,10.17428643,2584.4,2584.3,3.86950241]
[1751842896940,9.818,2584.4,2584.3,3.86950241]
[1751842897142,9.818,2584.4,2584.0,3.86996904]
[1751842897353,0.1928,2584.1,2584.0,3.86996904]
[1751842897868,0.1928,2584.1,2583.8,3.8702446]
[1751842898167,0.1928,2583.9,2583.6,4.15497576]
[1751842898372,7.885,2584.0,2583.7,3.87035246]
[1751842898674,0.1928,2583.7,2583.6,4.15506819]
[1751842900642,0.1928,2583.7,2583.6,3.87056819]
[1751842904273,0.1928,2583.7,2583.5,3.87062571]
[1751842904455,0.04838022,2583.7,2583.5,3.87062571]
[1751842904646,0.1928,2583.5,2583.4,3.87086784]
[1751842904849,7.886,2583.7,2583.6,3.87056819]
[1751842905248,7.886,2583.7,2583.5,3.87066776]
[1751842905249,0.1928,2583.6,2583.5,3.87066776]
[1751842905456,7.886,2583.7,2583.5,3.87066776]
[1751842906582,0.1928,2583.5,2583.4,3.87086191]
[1751842907284,0.1928,2583.5,2583.4,3.87086784]
[1751842907679,0.1928,2583.5,2583.3,0.0422806]
[1751842907680,0.1928,2583.5,2583.3,3.91324694]
[1751842907986,0.0483821,2583.6,2583.4,3.87082293]
[1751842908163,0.7726,2583.8,2583.6,3.87053739]
[1751842908364,9.819,2583.7,2583.6,3.87053739]
[1751842908562,0.1928,2583.6,2583.3,3.91325787]
[1751842908793,0.1928,2583.4,2583.3,3.91325787]
[1751842909190,0.1928,2583.4,2583.3,0.0422806]
[1751842909379,8.9037,2583.4,2583.3,0.0422806]
[1751842909585,8.97400821,2583.4,2583.3,0.0422806]
[1751842909985,8.97400821,2583.4,2582.7,5.18495574]
[1751842909986,30.0,2581.5,2581.4,5.3753]
[1751842910164,3.87401696,2581.3,2580.0,2.325]
[1751842910365,3.87401696,2581.3,2578.9,17.9841106]
[1751842910366,3.87608399,2580.0,2578.9,17.9841106]
[1751842910589,3.87837418,2578.4,2578.0,0.0460424]
[1751842910896,16.75337418,2578.4,2577.0,3.88035669]
[1751842911095,25.61837418,2578.4,2576.5,8.71048837]
[1751842911297,25.61737418,2578.4,2578.3,0.24502277]
[1751842911595,14.42882549,2578.1,2578.0,0.0712494]
[1751842911802,24.07338719,2578.1,2578.0,0.0712494]
[1751842912206,12.325,2578.4,2578.0,0.0712494]
[1751842912421,12.29116309,2578.4,2578.0,0.0712494]
[1751842912812,3.92713292,2578.3,2578.0,0.0712494]
[1751842912977,9.051,2578.2,2578.0,0.0712494]
[1751842913290,2.29116309,2578.4,2578.0,0.0712494]
[1751842913291,9.10048531,2578.1,2578.0,0.0712494]
[1751842913613,9.054,2578.1,2578.0,0.0712494]
[1751842913926,9.082,2578.2,2578.0,0.0712494]
[1751842914387,9.082,2578.1,2577.6,3.8795591]
[1751842914728,16.16966973,2578.4,2577.6,3.8795591]
[1751842914729,12.29116309,2578.4,2577.6,0.46803574]
[1751842915014,6.48362097,2578.6,2577.2,10.0]
[1751842915015,11.69448155,2578.3,2577.2,10.0]
[1751842915181,5.69632097,2578.2,2577.2,10.0]
[1751842915376,5.69632097,2577.7,2576.9,0.7982]
[1751842915582,5.69632097,2577.0,2576.7,4.43078614]
[1751842915781,5.69632097,2577.0,2576.9,3.88063176]
[1751842915982,7.97484936,2577.2,2577.1,3.8803306]
[1751842916387,11.38631067,2577.7,2577.6,3.8795779]
[1751842917184,11.38631067,2577.8,2577.7,3.87942739]
[1751842917683,11.38631067,2577.8,2577.6,3.8795779]
[1751842918031,14.80220387,2578.2,2577.9,3.87911635]
[1751842918193,14.80220387,2578.2,2577.9,2.561]
[1751842918391,14.80220387,2578.2,2577.7,0.38795779]
[1751842918605,14.80220387,2578.2,2577.9,3.87910637]
[1751842918803,14.80220387,2578.2,2578.0,3.87896437]
[1751842919327,9.247,2578.5,2577.9,3.87902654]
[1751842919703,9.247,2578.5,2578.0,3.87896875]
[1751842919912,9.247,2578.5,2577.8,7.24356073]
[1751842919913,9.247,2578.5,2578.1,3.87880883]
[1751842920226,18.21809707,2578.7,2577.9,2.561]
[1751842920432,14.48672339,2578.1,2578.0,4.07246849]
[1751842921630,14.68032339,2578.4,2578.1,3.87879281]
[1751842921833,14.68032339,2578.4,2578.2,3.87857048]
[1751842922002,14.68032339,2578.4,2578.3,3.8785246]
[1751842922322,14.68032339,2578.4,2578.1,3.8787917]
[1751842922323,14.68032339,2578.4,2578.1,3.87876294]
[1751842922626,14.68032339,2578.4,2578.0,6.44087951]
[1751842922627,11.12382574,2578.2,2578.0,6.44087951]
[1751842922830,11.12382574,2578.2,2578.1,3.87882549]
[1751842922998,11.12382574,2578.2,2578.0,6.44091126]
[1751842923199,11.12382574,2578.2,2578.1,3.87882549]
[1751842924101,11.12382574,2578.5,2578.2,3.87859415]
[1751842924302,11.12382574,2578.5,2578.0,2.562]
[1751842924708,11.12382574,2578.5,2578.3,3.87848645]
[1751842924912,20.33982574,2578.6,2578.2,3.8786234]
[1751842925094,11.12382574,2578.6,2578.3,3.87841916]
[1751842925299,11.12382574,2578.6,2578.3,3.8785246]
[1751842925532,11.12382574,2578.6,2578.5,3.87822377]
[1751842925736,11.12382574,2578.6,2578.1,2.562]
[1751842925901,11.12382574,2578.6,2578.5,3.87822377]
[1751842926407,20.29482574,2578.9,2578.6,3.87800241]
[1751842926599,20.29482574,2578.9,2578.5,3.87822377]
[1751842926935,20.29482574,2578.9,2578.7,3.87782546]
[1751842927098,11.12382574,2578.9,2578.7,3.87787423]
[1751842927516,11.12382574,2578.9,2578.6,3.87794745]
[1751842927837,0.34625323,2578.8,2578.2,0.289853]
[1751842928034,7.77779994,2578.4,2577.8,0.8033]
[1751842928239,7.77779994,2578.4,2577.8,3.3663]
[1751842928437,7.77779994,2578.0,2577.9,3.87912642]
[1751842929735,7.77779994,2578.0,2577.9,6.44212642]
[1751842929946,7.77779994,2578.0,2577.9,4.99159527]
[1751842930448,11.12382574,2578.5,2578.3,3.87845171]
[1751842931951,11.12382574,2578.5,2578.4,3.87837418]
[1751842932250,10.0,2578.8,2578.4,3.87827674]
[1751842932460,11.13271516,2578.5,2578.1,2.563]
[1751842932763,11.13271516,2578.5,2578.3,3.87845744]
[1751842933166,11.13271516,2578.5,2578.2,4.07226218]
[1751842933835,11.13271516,2578.5,2578.3,3.87851303]
[1751842934042,11.13271516,2578.5,2578.3,3.87851289]
[1751842934277,0.1936,2578.6,2578.3,3.87851289]
[1751842934635,0.1936,2578.6,2578.2,4.07221414]
[1751842935175,0.002,2578.5,2578.3,3.8784523]
[1751842935374,0.002,2578.5,2578.2,4.0722006]
[1751842935549,0.002,2578.5,2578.2,4.07220159]
[1751842936032,0.002,2578.5,2578.3,3.87851735]
[1751842936438,0.002,2578.5,2578.2,4.07219664]
[1751842936777,0.002,2578.5,2578.4,3.87837418]
[1751842937136,0.002,2578.5,2578.4,4.07197418]
[1751842938138,0.002,2578.5,2578.4,0.1936]
[1751842938359,0.002,2578.5,2578.1,3.87877493]
[1751842938585,0.002,2578.5,2578.3,3.87849553]
[1751842938733,0.002,2578.5,2578.2,4.07219679]
[1751842939473,0.002,2578.5,2578.3,3.87850754]
[1751842940259,0.002,2578.5,2578.2,0.1936]
[1751842940766,0.002,2578.5,2578.3,3.87845623]
[1751842941390,27.33679455,2578.5,2577.9,6.36709778]
[1751842941545,27.33679455,2578.5,2578.3,3.87844493]
[1751842941740,27.33679455,2578.5,2578.1,0.1936]
[1751842941741,10.0,2578.4,2577.7,2.487]
[1751842941942,10.0,2578.4,2578.2,3.87860457]
[1751842942370,18.2163706,2578.3,2577.8,2.487]
[1751842942570,0.8094,2578.1,2577.5,3.87961059]
[1751842942849,10.04848719,2578.0,2577.7,3.8793487]
[1751842943065,10.0,2578.0,2577.7,3.8793487]
[1751842943252,10.0,2578.0,2577.5,3.87967375]
[1751842943253,0.04848908,2577.9,2577.5,3.87972431]
[1751842943459,10.0,2577.8,2577.6,3.87956117]
[1751842943964,14.81211472,2577.9,2577.8,3.8792769]
[1751842944566,10.0,2578.2,2577.7,3.87942739]
[1751842944778,10.0,2578.2,2578.0,3.87890151]
[1751842944994,10.0,2578.2,2578.1,3.87882549]
[1751842946979,10.0,2578.2,2578.0,4.07253811]
[1751842947283,0.1936,2578.0,2577.5,4.07321012]
[1751842947463,9.02448908,2577.9,2577.5,0.1936]
[1751842947676,0.7704,2577.8,2576.4,3.88138487]
[1751842947858,11.40628763,2577.1,2577.0,3.88048117]
[1751842948259,11.40628763,2577.1,2577.0,4.67058117]
[1751842948486,11.40628763,2577.1,2576.7,6.36793297]
[1751842948667,23.80011472,2577.8,2576.7,6.36793297]
[1751842948668,11.40628763,2577.6,2576.7,3.88093297]
[1751842948987,11.40628763,2577.6,2576.5,2.95414849]
[1751842948988,11.40628763,2577.6,2576.6,3.88108359]
[1751842949164,11.40628763,2577.6,2577.2,3.88006577]
[1751842949355,11.40628763,2577.5,2576.9,3.88059668]
[1751842949551,9.03449848,2577.4,2576.9,3.88057429]
[1751842949756,9.03449848,2577.4,2576.5,0.46714849]
[1751842949757,12.8658844,2577.4,2576.5,0.46714849]
[1751842949986,12.86594714,2577.4,2576.7,3.88093223]
[1751842950203,8.986,2577.4,2576.6,3.8810636]
[1751842950481,11.40628763,2577.1,2576.6,0.43482121]
[1751842950886,11.40628763,2577.1,2577.0,3.88048117]
[1751842951048,8.977,2577.2,2577.0,3.88048117]
[1751842951256,8.977,2577.2,2576.3,2.487]
[1751842951257,0.8279,2574.7,2573.9,0.12796377]
[1751842951464,21.81454079,2574.0,2573.9,0.12796377]
[1751842951704,0.8279,2574.5,2573.5,0.20252128]
[1751842951868,0.55,2574.2,2572.9,0.8291]
[1751842952055,0.04856066,2574.1,2573.2,0.20263432]
[1751842952256,0.04855877,2574.2,2573.3,3.8860607]
[1751842952485,11.40628763,2574.3,2573.2,0.20263432]
[1751842952789,9.376,2574.3,2573.2,1.40448343]
[1751842952978,9.376,2574.3,2573.9,3.83506954]
[1751842953178,9.376,2574.3,2573.7,3.88537106]
[1751842953382,0.8279,2574.5,2573.3,3.8860607]
[1751842953693,10.0,2574.7,2573.4,0.7515]
[1751842953859,0.04855123,2574.6,2573.5,4.34943626]
[1751842954054,2.3,2574.3,2573.7,3.88545673]
[1751842954286,3.44115877,2574.2,2573.0,3.88643608]
[1751842954607,0.55,2574.0,2573.0,3.88640751]
[1751842954763,3.93382471,2573.9,2572.4,4.7524027]
[1751842955096,3.93382471,2573.9,2572.9,3.88654537]
[1751842955097,14.67936241,2573.7,2572.9,3.88654537]
[1751842955258,14.67936241,2573.7,2572.8,3.88681592]
[1751842955259,0.04857009,2573.6,2572.8,3.88681592]
[1751842955460,0.7939,2573.7,2573.3,3.88595088]
[1751842955779,9.385,2573.5,2572.9,3.88652949]
[1751842955977,0.04857387,2573.4,2573.1,3.88632526]
[1751842956177,0.04857387,2573.4,2573.0,3.88647274]
[1751842956380,0.04857387,2573.4,2572.5,0.47524027]
[1751842956682,0.04857387,2573.4,2573.2,3.8861261]
[1751842956881,0.04857009,2573.6,2572.6,3.88705773]
[1751842957058,0.04857009,2573.6,2572.7,0.4362298]
[1751842957694,0.04857009,2573.6,2573.5,3.88575869]
[1751842958005,0.7939,2573.7,2573.6,3.8856077]
[1751842958159,10.1529,2573.7,2573.5,3.8857043]
[1751842958354,10.0,2573.6,2573.5,3.8857043]
[1751842958789,0.1936,2573.5,2573.3,3.88596821]
[1751842958955,10.0,2573.6,2573.5,3.88575869]
[1751842959158,12.3,2573.6,2573.5,3.88575869]
[1751842959558,21.644,2573.6,2573.5,3.88575869]
[1751842959773,12.3,2573.6,2573.5,3.88575869]
[1751842959984,21.638,2573.6,2573.5,3.88575869]
[1751842960580,11.639,2573.6,2573.5,3.88575869]
[1751842961205,0.1936,2573.5,2573.4,3.88590551]
[1751842961504,9.57017198,2573.5,2573.4,3.88590551]
[1751842961682,9.5216,2573.5,2573.4,3.88590551]
[1751842961883,0.1936,2573.5,2573.4,3.88590551]
[1751842963884,10.04856443,2573.9,2573.8,3.88530577]
[1751842964207,9.292,2573.9,2573.8,3.88530577]
[1751842964417,0.1936,2573.8,2573.7,3.88545673]
[1751842964573,10.0,2573.8,2573.7,3.88545673]
[1751842964773,0.8186,2574.0,2573.7,3.88545673]
[1751842964970,0.04856443,2573.9,2573.8,3.88530577]
[1751842965176,9.281,2573.9,2573.8,3.88530577]
[1751842965404,19.281,2573.9,2573.8,3.88530577]
[1751842965610,10.0,2573.9,2573.8,3.88530577]
[1751842966018,19.272,2573.9,2573.8,3.88530577]
[1751842966701,10.0,2573.9,2573.8,3.88530577]
[1751842967211,19.258,2573.9,2573.8,3.88530577]
[1751842967787,10.0,2573.9,2573.8,3.88530577]
[1751842967989,0.8186,2574.0,2573.9,3.88515482]
[1751842968182,0.1936,2573.9,2573.8,3.88530577]
[1751842968382,9.246,2573.9,2573.8,3.88530577]
[1751842968784,0.1936,2574.1,2574.0,3.88500388]
[1751842969616,9.4306,2574.1,2574.0,3.88500388]
[1751842969925,0.1936,2574.1,2574.0,3.88500388]
[1751842970124,9.4246,2574.1,2574.0,3.88500388]
[1751842970294,0.1936,2574.1,2573.9,3.88504489]
[1751842970839,0.1936,2574.1,2574.0,3.88500388]
[1751842970994,9.4136,2574.1,2573.9,3.88508091]
[1751842971195,0.04856254,2574.0,2573.5,3.88572898]
[1751842971414,0.1936,2573.9,2573.7,3.8853407]
[1751842971628,0.1936,2573.9,2573.8,3.88530577]
[1751842973048,9.3916,2573.9,2573.8,3.88530577]
[1751842974147,1.1936,2573.9,2573.8,3.88530577]
[1751842974313,10.3916,2573.9,2573.8,3.88530577]
[1751842975225,10.3756,2573.9,2573.8,3.88530577]
[1751842975429,1.1936,2573.9,2573.8,3.88530577]
[1751842975630,1.1936,2573.9,2573.7,3.88539336]
[1751842975947,1.1936,2573.9,2573.7,3.88538174]
[1751842976173,1.1936,2573.9,2573.7,3.88545673]
[1751842976358,10.3586,2573.9,2573.8,3.88530577]
[1751842977047,10.3526,2573.9,2573.8,3.88530577]
[1751842977255,10.3436,2573.9,2573.8,3.88530577]
[1751842978351,1.1936,2573.9,2573.8,3.88530577]
[1751842978551,10.15,2573.9,2573.8,3.88530577]
[1751842978752,1.0,2573.9,2573.8,3.88530577]
[1751842979423,0.55,2573.8,2573.1,0.0680608]
[1751842979740,10.0,2573.6,2573.2,3.88611751]
[1751842979940,3.93434373,2573.5,2573.1,0.0680608]
[1751842980354,0.04857198,2573.5,2573.1,3.95441103]
[1751842980553,0.04857198,2573.5,2573.2,3.88621172]
[1751842980851,9.18857198,2573.5,2573.2,3.88621172]
[1751842981157,9.14,2573.5,2573.3,3.88604896]
[1751842981325,9.14,2573.5,2573.1,3.95441641]
[1751842981524,11.18552106,2573.5,2573.1,3.95441641]
[1751842982127,0.04857387,2573.4,2573.2,3.88618749]
[1751842982483,2.04552106,2573.5,2573.2,3.88618749]
[1751842982484,11.22335614,2573.5,2573.2,3.88618749]
[1751842982651,9.127,2573.4,2573.2,3.88618749]
[1751842983047,9.127,2573.4,2573.1,3.95436699]
[1751842983289,10.66186815,2573.4,2573.1,3.95436699]
[1751842983850,10.0,2573.7,2573.1,3.95440268]
[1751842984050,9.116,2573.6,2573.5,3.8856514]
[1751842984858,0.774,2573.9,2573.6,3.88554874]
[1751842985057,0.774,2573.9,2573.8,3.88530577]
[1751842985367,10.0,2574.1,2573.7,3.88540029]
[1751842985574,9.101,2573.9,2573.7,3.88540029]
[1751842986082,9.099,2573.8,2573.7,3.88540029]
[1751842986283,1.47545443,2574.1,2573.6,3.88560734]
[1751842986482,0.04856254,2574.0,2573.8,3.88523195]
[1751842986687,9.086,2573.9,2573.8,3.88523195]
[1751842987059,13.8847276,2574.2,2573.7,3.88538214]
[1751842987256,9.083,2573.9,2573.7,3.88538214]
[1751842987656,9.083,2573.9,2573.8,3.88530577]
[1751842988794,0.8212,2574.3,2573.7,3.88544538]
[1751842988997,10.58312591,2574.2,2573.8,3.88530577]
[1751842989174,10.53456714,2574.2,2573.8,3.88530577]
[1751842989376,10.04856066,2574.1,2573.3,0.7986]
[1751842989690,0.1936,2573.9,2573.7,3.8853165]
[1751842989891,0.1936,2573.9,2573.8,3.88530577]
[1751842990197,9.2496,2573.9,2573.8,3.88530577]
[1751842990393,0.1936,2573.9,2573.8,3.88530577]
[1751842990690,0.1936,2574.2,2573.9,3.88512695]
[1751842990891,0.8159,2574.7,2574.6,3.8840985]
[1751842991093,0.002,2575.0,2574.8,3.88379679]
[1751842991094,0.0990196,2574.9,2574.8,3.88379679]
[1751842991284,0.0990196,2574.9,2574.5,0.1936]
[1751842991486,0.1936,2574.7,2574.2,0.9827]
[1751842991794,0.1936,2574.7,2574.6,3.88409535]
[1751842992290,9.2366,2574.9,2574.6,3.88409535]
[1751842992500,9.2366,2574.9,2574.4,0.1936]
[1751842992869,9.2366,2574.9,2574.7,3.88380436]
[1751842993395,9.2366,2574.9,2574.6,3.8840411]
[1751842993897,11.24205,2574.9,2574.4,0.1936]
[1751842994085,0.1936,2574.7,2574.6,3.88407731]
[1751842994487,0.1936,2574.7,2574.5,3.88423659]
[1751842994698,0.1936,2574.7,2574.6,3.8840985]
[1751842994913,0.002,2575.0,2574.9,3.88364596]
[1751842995135,9.024,2574.9,2574.6,3.8840985]
[1751842995430,9.024,2574.9,2574.6,3.88407635]
[1751842995587,9.024,2574.9,2574.8,3.88379679]
[1751842995793,9.3789904,2574.9,2574.8,4.24647273]
[1751842995992,9.3789904,2574.9,2574.6,3.41747639]
[1751842996209,0.3549904,2574.8,2574.7,3.88394764]
[1751842996990,9.015,2574.9,2574.8,3.88379679]
[1751842997338,9.36986363,2574.9,2574.8,3.88379679]
[1751842997535,9.3697498,2574.9,2574.8,3.88379679]
[1751842997833,9.3567498,2574.9,2574.8,3.88379679]
[1751842998030,9.3507498,2574.9,2574.8,3.88379679]
[1751842998532,0.3547498,2574.9,2574.8,3.88379679]
[1751842999738,0.002,2575.0,2574.9,3.88364596]
[1751842999910,0.35651079,2575.0,2574.9,3.88364596]
[1751843000112,0.3565341,2575.0,2574.9,3.88364596]
[1751843006322,0.1956,2575.0,2574.9,3.88364596]
[1751843006705,0.35591086,2575.0,2574.9,3.88364596]
[1751843006912,0.002,2575.0,2574.9,4.66039024]
[1751843007146,0.002,2575.0,2574.9,4.85399024]
[1751843008032,0.35388861,2575.4,2575.3,3.88304275]
[1751843008231,0.04852672,2575.9,2575.8,3.88228899]
[1751843008435,0.1936,2575.8,2575.7,3.88239568]
[1751843008617,0.7504,2576.0,2575.8,3.88228899]
[1751843008813,0.7504,2576.0,2575.9,3.88213828]
[1751843009013,20.01726617,2576.0,2575.8,3.88222816]
[1751843009234,0.59599289,2575.9,2575.8,3.88222816]
[1751843010047,0.59599289,2575.9,2575.8,4.70352816]
[1751843010348,0.1936,2576.1,2576.0,3.88198757]
[1751843011663,0.1936,2576.1,2575.7,3.88234491]
[1751843011820,0.04852484,2576.0,2575.7,3.88234491]
[1751843012016,0.1936,2575.9,2575.8,3.88228899]
[1751843012442,10.24212107,2576.2,2576.0,3.88188847]
[1751843012648,13.18921211,2576.2,2576.0,3.88188847]
[1751843012849,13.18921211,2576.2,2576.1,3.88183688]
[1751843013257,13.18921211,2576.2,2576.0,3.88192177]
[1751843013451,13.18921211,2576.2,2576.0,3.88191386]
[1751843014064,22.06321211,2576.2,2576.1,3.88183688]
[1751843014364,10.1936,2576.2,2576.0,3.88191101]
[1751843014742,0.1936,2576.2,2576.0,3.88191101]
[1751843014946,10.24212107,2576.2,2576.0,3.88191101]
[1751843015262,10.1936,2576.2,2576.1,3.88183688]
[1751843015865,10.1936,2576.2,2576.0,3.88191632]
[1751843016162,12.09976,2576.2,2576.1,3.88183688]
[1751843016364,10.1936,2576.2,2576.1,3.88183688]
[1751843016562,0.1936,2576.2,2576.1,3.88183688]
[1751843016754,10.1936,2576.2,2576.0,3.88192367]
[1751843017152,10.1936,2576.2,2576.1,3.88183688]
[1751843017343,10.0,2576.2,2576.1,3.88183688]
[1751843017867,19.0366,2576.3,2576.2,3.8816862]
[1751843018034,10.1936,2576.3,2576.2,3.8816862]
[1751843018240,9.0336,2576.3,2576.2,3.8816862]
[1751843018566,0.1936,2576.3,2576.2,3.8816862]
[1751843019157,9.0286,2576.3,2576.2,3.8816862]
[1751843019566,0.0309272,2576.7,2575.8,4.6534563]
[1751843019755,0.1936,2576.4,2576.3,3.8814374]
[1751843022275,0.38558172,2576.7,2576.6,3.88108359]
[1751843022646,1.37311155,2576.7,2576.4,3.88132569]
[1751843022842,0.35465452,2576.6,2576.5,3.88123423]
[1751843023146,0.1936,2576.5,2576.4,3.88138487]
[1751843023346,8.8319272,2576.7,2576.6,3.88108359]
[1751843023671,0.3854791,2576.7,2576.6,3.88108359]
[1751843025379,0.38537706,2576.7,2576.6,3.88108359]
[1751843026255,0.38533821,2576.7,2576.6,3.88108359]
[1751843026581,0.0309272,2576.7,2576.6,3.88108359]
[1751843029756,0.0309272,2576.7,2576.5,3.88117127]
[1751843029958,0.0309272,2576.7,2576.6,3.88108359]